[Event "SixDays Budapest March GM A 2025"]
[Site "Budapest"]
[Date "2025.03.25"]
[Round "3.5"]
[White "Aczel, Gergely"]
[Black "Borgaonkar Akshay"]
[Result "0-1"]
[Annotator "TA"]
[ECO "D12"]
[WhiteElo "2487"]
[BlackElo "2418"]
[PlyCount "92"]
[EventDate "2025.03.23"]
[EventCountry "HUN"]
[SourceTitle "playchess.com"]
[Source "ChessBase"]
[SourceQuality "1"]
[TimeControl "5400+30"]

{[%evp 11,92,29,28,8,22,11,20,25,35,41,40,35,45,37,50,45,47,48,47,42,38,47,48,47,44,41,40,27,38,11,29,18,28,16,31,19,67,27,68,66,55,58,83,89,98,89,96,56,81,59,78,0,0,0,0,0,132,137,137,133,152,11,11,0,0,0,0,0,67,0,166,165,284,189,350,329,332,217,214,210,228,229,226]} 1. d4 {[%emt 0:00:39]} d5 {[%emt 0:00:06]} 2. c4 {[%emt 0:00:05]} c6 {[%emt 0:00:05]} 3. Nf3 {[%emt 0:00:04]} Nf6 {[%emt 0:00:06]} 4. e3 {[%emt 0:00:04]} Bf5 {[%emt 0:00:09]} 5. Nc3 {[%emt 0:00:05]} e6 {[%emt 0:00:07]} 6. Nh4 {[%emt 0:00:04]} Bg6 {[%emt 0:00:10]} 7. Be2 {[%emt 0:00:11] D12: Slav Defence: 3 Nf3 Nf6 4 e3 Bf5.} Nbd7 {[%emt 0:02:04]} 8. O-O {[%emt 0:01:55]} Be7 {[%emt 0:07:53]} 9. g3 {[%emt 0:02:45] The position is equal.} O-O {[%emt 0:03:51]} 10. Nxg6 {[%emt 0:00:09]} hxg6 {[%emt 0:00:06]} 11. b3 {[%emt 0:08:32][%cal Bb2b3,Bb3b4,Bb4c5][%mdl 32]} Rc8 {[%emt 0:05:16]} 12. Bb2 {[%emt 0:00:08]} a6 {[%emt 0:03:24][%cal Ba7a6,Ba6a5][%mdl 32]} 13. c5 $146 {[%emt 0:06:48]} (13. a3 b5 14. c5 Re8 15. b4 Qc7 16. a4 e5 17. Bf3 Nf8 18. Bg2 N6d7 19. axb5 axb5 20. Bxd5 cxd5 21. Nxd5 {0-1 Wang,Y (2736)-Nguyen,N (2567) WMSG Rapid 1st 2008 (8)}) 13... a5 {[%emt 0:07:05]} 14. a3 {[%emt 0:08:52]} b6 {[%emt 0:03:45]} 15. b4 {[%emt 0:00:07]} Rb8 {[%emt 0:14:58]} 16. Qc2 {[%emt 0:00:16]} bxc5 {[%emt 0:04:40]} 17. bxc5 {[%emt 0:00:02]} e5 {[%emt 0:00:54]} 18. Rfb1 {[%emt 0:07:56] White plays on the queen side and is better} Re8 {[%emt 0:05:16]} 19. Bf3 {[%emt 0:20:09]} Qc7 {[%emt 0:02:48]} 20. Ne2 {[%emt 0:00:11]} exd4 {[%emt 0:08:39]} 21. exd4 {[%emt 0:00:21]} Nf8 {[%emt 0:00:20]} 22. Bc1 {[%emt 0:11:07]} Ne6 {[%emt 0:04:41]} 23. Be3 {[%emt 0:14:43]} Nd7 {[%emt 0:03:35]} (23... g5 $11) 24. h4 {[%emt 0:00:17]} Bf6 {[%emt 0:02:15]} 25. Kg2 {[%emt 0:00:29]} Rxb1 {[%emt 0:03:09]} 26. Rxb1 {[%emt 0:00:02]} Rb8 {[%emt 0:00:55]} 27. Rxb8+ {[%emt 0:02:43]} Qxb8 {[%emt 0:00:17]} 28. Qa4 {[%emt 0:00:15][%csl LRa5,LRc6]} Qc7 {[%emt 0:01:19]} 29. Bd2 {[%emt 0:03:41]} Bd8 {[%emt 0:01:54]} 30. Nc1 $36 {[%emt 0:00:22][%mdl 2048] White has some pressure.} g5 {[%emt 0:04:55]} 31. Nb3 {[%emt 0:07:43]} (31. hxg5 $16 {[%cal Og5g6] g6! would now be deadly.} Bxg5 32. Bxa5 (32. Qxa5 $2 Qxa5 33. Bxa5 Bxc1 $19)) 31... gxh4 $11 {[%emt 0:00:37]} 32. Bxa5 {[%emt 0:02:56]} (32. Qxa5 Qxa5 33. Nxa5 Nxd4 $19) 32... Qc8 {[%emt 0:00:27]} 33. Bxd8 {[%emt 0:00:09]} h3+ {[%emt 0:00:39]} (33... Nxd8 $11 {remains equal.} 34. Bg4 (34. gxh4 Nf8 $15) 34... hxg3) 34. Kh2 $16 {[%emt 0:01:54]} (34. Kxh3 $2 Ndxc5 35. Kg2 Nxa4 $19) 34... Nxd8 {[%emt 0:02:35]} 35. Bg4 $1 {[%emt 0:00:09]} (35. Kxh3 $2 Nxc5+ (35... Nb6+ $2 36. Bg4 $19) 36. Bg4 Qxg4+ (36... Nxa4 37. Bxc8 Nb6 38. Bg4 $11) 37. Kxg4 Nxa4 $19) 35... Ne6 {[%emt 0:01:32] [#]} 36. Bxh3 {[%emt 0:00:07]} (36. Nd2 $1 $16) 36... Ng5 $1 $11 {[%emt 0:00:19]} 37. Bg4 {[%emt 0:02:06]} f5 $1 {[%emt 0:00:13]} 38. Be2 {[%emt 0:00:39]} (38. Bxf5 $5 Qf8 $8 39. g4 $11 (39. Bxd7 $2 Qxf2+ 40. Kh1 Qf1+ 41. Kh2 Nf3#)) 38... Nf6 {[%emt 0:00:16][%cal Of5f4] ...f4! would now be deadly.} 39. Qa6 {[%emt 0:00:31]} Qe8 {[%emt 0:00:39]} ({Black should play} 39... Qe6 $1 $11) 40. Nd2 {[%emt 0:00:35]} (40. Na5 Ng4+ 41. Kg1 (41. Bxg4 fxg4 42. Kg1 Nf3+ 43. Kg2 Qh5 $19) 41... Qe4 42. Bxg4 (42. Nxc6 $2 Nh3+ 43. Kf1 Qh1#) 42... fxg4 $19) (40. Qd3 $14) 40... Ng4+ $2 {[%emt 0:00:49] Excellent horsemanship.} (40... Ne6 $11) 41. Kg2 $18 {[%emt 0:00:08]} Qe6 {[%emt 0:04:12]} (41... Ne6 $142) 42. Qd3 {[%emt 0:00:14]} Nf6 $2 (42... f4 {was called for.} 43. gxf4 Nh3 44. Qxh3 (44. Kxh3 $2 {is the wrong capture.} Nxf2+ 45. Kg2 Nxd3 $19) 44... Qxe2) 43. Qe3 {[%emt 0:00:28]} Nge4 {[%emt 0:01:42]} 44. Nxe4 {[%emt 0:00:45]} dxe4 {[%emt 0:00:09] White is clearly better.} 45. Qc1 {[%emt 0:01:01]} Nd5 {[%emt 0:00:49][%cal Of5f4] [#]} 46. Bc4 $1 {[%emt 0:00:30]} f4 {[%emt 0:00:33][%mdl 32768] Weighted Error Value: White=0.23 (precise) /Black=0.29 (precise)  Loss on time!?  Loses game:     	---       	Black=1      Mistake:       	White=3     	Black=5      Inaccurate:     	White=5     	Black=1      OK:         	White=14    	Black=10     Best:        	White=1     	Black=1      Strong:       	White=1     	Black=2} 0-1

[Event "SixDays Budapest March GM A 2025"]
[Site "Budapest"]
[Date "2025.03.26"]
[Round "4.1"]
[White "Moldagali, Beksultan"]
[Black "Borgaonkar Akshay"]
[Result "0-1"]
[Annotator "ChessBase"]
[ECO "B40"]
[WhiteElo "2398"]
[BlackElo "2418"]
[PlyCount "78"]
[EventDate "2025.03.23"]
[EventCountry "HUN"]
[SourceTitle "playchess.com"]
[Source "ChessBase"]
[SourceQuality "1"]
[TimeControl "5400+30"]

1. e4 {[%emt 0:00:26]} c5 {[%emt 0:00:10]} 2. Nf3 {[%emt 0:00:17]} e6 {[%emt 0:00:05]} 3. d4 {[%emt 0:01:03]} cxd4 {[%emt 0:00:17]} 4. Nxd4 {[%emt 0:00:03]} Nf6 {[%emt 0:00:06]} 5. Nc3 {[%emt 0:00:14]} Nc6 {[%emt 0:00:06]} 6. g3 {[%emt 0:02:23]} Bb4 {[%emt 0:15:46]} 7. Bg2 {[%emt 0:01:55]} d5 {[%emt 0:10:37]} 8. exd5 {[%emt 0:07:47]} exd5 {[%emt 0:10:53]} 9. O-O {[%emt 0:03:29]} O-O {[%emt 0:01:38]} 10. Bg5 {[%emt 0:04:12]} Bxc3 {[%emt 0:03:36]} 11. bxc3 {[%emt 0:00:01]} h6 {[%emt 0:03:08]} 12. Bf4 {[%emt 0:05:17]} Bg4 {[%emt 0:01:56]} 13. Qd3 {[%emt 0:05:22]} Qd7 {[%emt 0:01:51]} 14. Rfe1 {[%emt 0:05:03]} Rfe8 {[%emt 0:01:25]} 15. Nxc6 {[%emt 0:00:16]} bxc6 {[%emt 0:01:28]} 16. Qd4 {[%emt 0:00:09]} Bh3 {[%emt 0:07:34]} 17. Bxh6 {[%emt 0:11:16]} Bxg2 {[%emt 0:00:19]} 18. Kxg2 {[%emt 0:00:13]} Qf5 {[%emt 0:00:38]} 19. Bf4 {[%emt 0:01:01]} Qxc2 {[%emt 0:01:02]} 20. a4 {[%emt 0:08:44]} Re4 {[%emt 0:03:39]} 21. Rxe4 {[%emt 0:01:59]} Nxe4 {[%emt 0:00:30]} 22. Rc1 {[%emt 0:03:03]} Qb2 {[%emt 0:00:16]} 23. Re1 {[%emt 0:08:21]} c5 {[%emt 0:05:18]} 24. Qxd5 {[%emt 0:01:05]} Qxf2+ {[%emt 0:00:06]} 25. Kh3 {[%emt 0:00:08]} Qxe1 {[%emt 0:00:32]} 26. Qxa8+ {[%emt 0:00:07]} Kh7 {[%emt 0:00:03]} 27. Qc8 {[%emt 0:03:20]} Qf1+ {[%emt 0:08:41]} 28. Kh4 {[%emt 0:00:11]} Qc4 {[%emt 0:02:12]} 29. g4 {[%emt 0:07:06]} Qd5 {[%emt 0:03:20]} 30. Qf5+ {[%emt 0:06:15]} Qxf5 {[%emt 0:00:07]} 31. gxf5 {[%emt 0:00:01]} Nxc3 {[%emt 0:00:08]} 32. a5 {[%emt 0:00:05]} c4 {[%emt 0:01:58]} 33. Kg4 {[%emt 0:07:33]} Na2 {[%emt 0:01:22]} 34. a6 {[%emt 0:05:51]} c3 {[%emt 0:00:14]} 35. Kf3 {[%emt 0:00:07]} c2 {[%emt 0:00:09]} 36. Ke4 {[%emt 0:00:06]} c1=Q {[%emt 0:00:43]} 37. Bxc1 {[%emt 0:00:02]} Nxc1 {[%emt 0:00:06]} 38. Kd5 {[%emt 0:00:08]} Kh6 {[%emt 0:00:33]} 39. Kc6 {[%emt 0:00:06]} Nd3 {[%emt 0:00:16]} 0-1

[Event "SixDays Budapest March GM A 2025"]
[Site "Budapest"]
[Date "2025.03.26"]
[Round "4.2"]
[White "Ostrovskiy, Aleksandr"]
[Black "Aczel, Gergely"]
[Result "1/2-1/2"]
[Annotator "TA"]
[ECO "B90"]
[WhiteElo "2394"]
[BlackElo "2487"]
[PlyCount "191"]
[EventDate "2025.03.23"]
[EventCountry "HUN"]
[SourceTitle "playchess.com"]
[Source "ChessBase"]
[SourceQuality "1"]
[TimeControl "5400+30"]

{[%evp 19,191,16,16,11,14,8,27,22,23,18,30,12,44,38,34,37,34,38,60,57,62,55,91,87,98,97,112,124,117,123,124,127,138,134,162,158,158,146,186,188,180,168,238,217,200,179,225,216,259,235,257,226,345,339,341,90,80,67,75,65,73,73,89,81,188,179,168,0,167,0,157,78,78,76,78,78,78,78,78,78,78,78,78,78,97,78,78,0,78,78,78,0,78,0,78,54,78,78,79,81,85,85,78,85,85,85,85,85,85,85,78,78,78,43,78,78,71,0,71,62,81,81,81,75,81,81,81,81,81,81,81,81,81,81,81,81,81,81,81,79,81,81,79,78,78,64,64,64,64,64,64,64,64,63,64,64,65,64,65,58,58,58,58,58,58,58,58,0,58,0,58,0,66,0]} 1. e4 {[%emt 0:03:24]} c5 {[%emt 0:04:45]} 2. Nf3 {[%emt 0:00:13]} d6 {[%emt 0:00:08]} 3. d4 {[%emt 0:00:27]} cxd4 {[%emt 0:00:17]} 4. Nxd4 {[%emt 0:00:06]} Nf6 {[%emt 0:00:05]} 5. Nc3 {[%emt 0:00:08]} a6 {[%emt 0:00:04]} 6. Be3 {[%emt 0:01:33]} e5 {[%emt 0:00:20]} 7. Nf3 {[%emt 0:00:07]} Qc7 {[%emt 0:00:06]} 8. a4 {[%emt 0:01:30][%cal Ba2a4,Ba4a5][%mdl 32]} Be7 {[%emt 0:04:21]} 9. Be2 {[%emt 0:02:14]} O-O {[%emt 0:01:08]} 10. O-O {[%emt 0:01:03]} Be6 {[%emt 0:00:38]} 11. a5 {[%emt 0:02:12]} Qd8 {[%emt 0:05:42]} 12. Nd5 {[%emt 0:21:04]} Nbd7 {[%emt 0:07:34]} 13. Nxe7+ {[%emt 0:08:59] White has an edge.} Qxe7 {[%emt 0:00:06]} 14. Ng5 {[%emt 0:00:11]} Rac8 {[%emt 0:07:46]} 15. c3 {[%emt 0:20:24]} Bc4 {[%emt 0:09:13]} 16. Bxc4 {[%emt 0:03:53]} Rxc4 {[%emt 0:00:02]} 17. Qb3 {[%emt 0:13:54][%csl LRb7,LRc4]} Rc7 {[%emt 0:00:08]} 18. f3 {[%emt 0:00:49]} Nc5 {[%emt 0:08:49]} 19. Qa2 {[%emt 0:02:38]} h6 {[%emt 0:15:44]} 20. Nh3 {[%emt 0:00:09]} Ne6 {[%emt 0:13:17]} 21. Rad1 {[%emt 0:03:27]} Ne8 {[%emt 0:06:07]} 22. Nf2 {[%emt 0:02:10]} Rd7 {[%emt 0:05:37]} 23. Rd2 {[%emt 0:01:37]} Nf6 {[%emt 0:05:19]} 24. Rfd1 {[%emt 0:00:53]} Rc8 {[%emt 0:00:28]} 25. Nd3 {[%emt 0:02:34]} Nc7 {[%emt 0:03:44]} 26. c4 {[%emt 0:03:16]} Nce8 {[%emt 0:00:47]} 27. b3 {[%emt 0:00:48]} Qe6 {[%emt 0:00:26]} 28. Nb4 {[%emt 0:00:45]} g5 {[%emt 0:00:44]} 29. h3 {[%emt 0:01:17][%cal Bh2h3,Bh3h4][%mdl 32]} Kg7 {[%emt 0:00:23]} 30. g4 {[%emt 0:00:53]} Kg6 {[%emt 0:00:22]} (30... Nc7 $142 31. Rd3 Kh7) 31. Rg2 {[%emt 0:00:53]} Nc7 {[%emt 0:00:26]} 32. Qd2 {[%emt 0:00:54]} Rh8 {[%emt 0:00:20]} (32... Ng8 {was necessary.} 33. h4 f6 34. h5+ Kh7) 33. Kf2 $18 {[%emt 0:00:41]} Qe7 {[%emt 0:00:28] [#]} 34. h4 $1 {[%emt 0:01:15][%mdl 512]} Ne6 {[%emt 0:00:11]} (34... Nh7 35. Bb6) 35. Rh1 {[%emt 0:01:02]} Rdd8 {[%emt 0:00:17]} (35... Nh7 $142 36. Nd5 Qf8) 36. Rgh2 {[%emt 0:00:14]} Kg7 {[%emt 0:01:11]} 37. Nd5 $2 {[%emt 0:00:45]} (37. hxg5 $6 hxg5 38. Kg1 Nf4 $18) (37. Bb6 $18) 37... Nxd5 $16 {[%emt 0:00:12]} 38. Qxd5 {[%emt 0:00:34]} (38. cxd5 Nf4 $11) 38... Rc8 {[%emt 0:01:40]} 39. Rd1 {[%emt 0:00:22][%csl Od6] White attacks a weakness} Rcd8 {[%emt 0:00:10]} 40. Bb6 {[%emt 0:00:29]} Rd7 {[%emt 0:00:35]} 41. Rdh1 {[%emt 0:00:38]} Qf6 {[%emt 0:00:44]} (41... Nf4 $16 42. Qd2 h5) 42. Be3 {[%emt 0:00:23]} Rdd8 {[%emt 0:00:16]} 43. Bb6 {[%emt 0:00:34]} (43. Qxb7 Rb8 44. Qd7 (44. Qxa6 $2 Rxb3 45. c5 Nd4 $19) 44... Rxb3 45. hxg5 Rb2+ (45... Nxg5 46. Qf5 $16) 46. Kg1 (46. Kg3 $2 Qf4+ 47. Bxf4 exf4+ 48. Kh4 hxg5#) 46... Rb1+ 47. Kg2 Rb2+ 48. Kg1 (48. Kg3 $2 Qf4+ 49. Bxf4 exf4+ 50. Kh4 hxg5#) 48... Rb1+ 49. Kf2 Rb2+ 50. Kg1 $11) 43... Rd7 $1 {[%emt 0:00:22]} 44. Be3 {[%emt 0:00:06]} Rdd8 $1 {[%emt 0:00:01][%cal Bd7d8,Bd8c8,Bc8c6][%mdl 32]} 45. Qd2 {[%emt 0:00:47]} (45. Qxb7 $6 Rb8 46. Qd7 (46. Qxa6 Rxb3 47. Rh3 Rb2+ 48. Kg1 Rhb8 $19) 46... Rxb3 47. hxg5 Rb2+ (47... Nxg5 48. Qf5 $16) 48. Kg1 (48. Kg3 $2 Qf4+ 49. Bxf4 exf4+ 50. Kh4 hxg5#) 48... Rb1+ 49. Kf2 Rb2+ 50. Kg1 Rb1+ 51. Kf2 Rb2+ $11) (45. hxg5 $142 hxg5 46. Rxh8 (46. Qxb7 Rxh2+ 47. Rxh2 Nd4 $11) 46... Rxh8 47. Rxh8 Kxh8 48. Qxb7) 45... Nf4 {[%emt 0:00:31]} 46. h5 {[%emt 0:00:37]} Rc8 {[%emt 0:00:23]} 47. Rd1 {[%emt 0:00:21]} Rc6 {[%emt 0:00:01]} 48. Kg3 {[%emt 0:00:33]} Re8 {[%emt 0:00:24]} 49. Qb4 {[%emt 0:00:24]} Re7 {[%emt 0:01:50]} 50. Rhd2 {[%emt 0:00:07][%cal Rd2d6]} Rd7 {[%emt 0:00:05]} 51. Qa3 {[%emt 0:00:41]} Qd8 {[%emt 0:00:51]} 52. Qa1 {[%emt 0:00:56][%cal Oc4c5]} Ne6 {[%emt 0:00:28]} 53. Qa3 {[%emt 0:00:30]} (53. Qa2 $16) 53... Qc7 {[%emt 0:00:20]} (53... Nf4 $1 $11) 54. Rd5 {[%emt 0:00:31]} Nf4 {[%emt 0:00:22]} 55. R5d2 {[%emt 0:00:31]} (55. Kf2 $16) 55... Ne6 {[%emt 0:00:10]} (55... Qd8 $11 {remains equal.}) 56. Rd5 {[%emt 0:00:17]} (56. Qb4 $16) 56... Qd8 {[%emt 0:00:29]} (56... Nf4 $11) 57. Qa1 {[%emt 0:00:42]} Qe7 {[%emt 0:00:41]} 58. Qb2 {[%emt 0:00:32]} Nc7 {[%emt 0:00:28]} 59. R5d2 {[%emt 0:00:11] White has space advantage and is better} Ne6 {[%emt 0:00:11]} 60. Kf2 {[%emt 0:00:40][%cal Bg3f2,Bf2f1,Bf1g2][%mdl 32]} Nf8 {[%emt 0:00:29]} 61. Rd5 {[%emt 0:00:26]} Ne6 {[%emt 0:01:06]} 62. Qa3 {[%emt 0:00:35]} Nf4 {[%emt 0:00:18]} 63. R5d2 $1 {[%emt 0:00:17]} Qd8 {[%emt 0:00:32]} 64. Qb4 {[%emt 0:00:40]} Ne6 {[%emt 0:00:52]} 65. Kf1 {[%emt 0:00:31]} Qf6 {[%emt 0:00:21]} 66. Kg2 {[%emt 0:00:19][%cal Oe3b6]} (66. Rxd6 $2 {perishes.} Qxf3+ 67. Kg1 Qxe3+ $19) 66... Qd8 {[%emt 0:00:19]} 67. Kf2 {[%emt 0:00:50]} Qe7 {[%emt 0:00:34]} 68. Kg2 {[%emt 0:00:27]} Qd8 $1 {[%emt 0:00:05]} 69. Rd5 {[%emt 0:00:29]} Nc7 {[%emt 0:00:35] [#]} 70. R5d3 $1 {[%emt 0:00:15][%cal Bd5d3,Bd3c3,Bc3c2,Bc2d2][%mdl 32]} Ne6 {[%emt 0:00:07]} 71. Kf2 {[%emt 0:00:43]} Qe7 {[%emt 0:00:29]} 72. Qd2 {[%emt 0:00:33]} Nf4 {[%emt 0:01:33] [#]} 73. Rc3 $1 {[%emt 0:00:34]} Rdc7 {[%emt 0:00:49][%cal Bd7c7,Bc7c8,Bc8e8][%mdl 32]} 74. Bb6 {[%emt 0:00:23]} Rc8 {[%emt 0:00:12]} 75. Rc2 {[%emt 0:00:32]} Qd7 {[%emt 0:00:41]} 76. Qb4 {[%emt 0:00:23]} Re8 {[%emt 0:00:21]} 77. Rcd2 {[%emt 0:00:12][%cal Rd2d6] Really sharp!} Re6 {[%emt 0:00:02]} 78. Qa3 {[%emt 0:00:43][%cal Ob6c5] Threatens to win with Bc5!.} Qe7 {[%emt 0:00:15]} 79. Be3 Qf6 {[%emt 0:00:55]} 80. Qb4 {[%emt 0:01:16]} Qe7 {[%emt 0:00:01]} 81. Kg3 {[%emt 0:00:24]} Kg8 {[%emt 0:00:35]} 82. Ba7 {[%emt 0:00:38]} Qc7 $1 {[%emt 0:00:39]} 83. Bb6 {[%emt 0:00:27]} Qe7 {[%emt 0:00:06]} 84. Qa3 {[%emt 0:00:29]} Kg7 {[%emt 0:00:18]} 85. Qa1 {[%emt 0:00:32]} Kh7 {[%emt 0:00:40]} 86. Ba7 {[%emt 0:00:29]} Qc7 {[%emt 0:01:16]} 87. Qa3 {[%emt 0:00:25]} Kg7 {[%emt 0:00:16]} 88. Be3 {[%emt 0:00:37]} Qe7 {[%emt 0:00:12]} 89. Bf2 {[%emt 0:00:29]} Rf6 {[%emt 0:00:43]} 90. Ba7 {[%emt 0:00:30]} Qc7 {[%emt 0:00:44] Inhibits Bb8.} 91. Be3 {[%emt 0:00:29]} Qe7 {[%emt 0:00:16]} 92. Qa1 {[%emt 0:00:32]} Qe6 {[%emt 0:00:45]} 93. Qa3 {[%emt 0:00:31] Active counter play!} Qe7 $1 {[%emt 0:00:18]} 94. Qb4 {[%emt 0:00:29]} (94. Bxf4 $14 gxf4+ 95. Kh3) 94... Qc7 {[%emt 0:00:22]} (94... Ne6 $1 $11) 95. Qa3 {[%emt 0:00:30]} Qe7 {[%emt 0:00:10]} 96. Qb4 {[%emt 0:00:27] Weighted Error Value: White=0.26 (precise) /Black=0.20 (precise)   Missed win:     	White=1     	---        Mistake:       	White=6     	Black=8      Inaccurate:     	White=1     	Black=3      OK:         	White=42    	Black=23     Best:        	White=1     	Black=5      Strong:       	White=3     	Black=5} ({Better is} 96. Bxf4 $1 $14 gxf4+ 97. Kh2) 1/2-1/2

[Event "SixDays Budapest March GM A 2025"]
[Site "Budapest"]
[Date "2025.03.26"]
[Round "4.3"]
[White "Rohrer, Christophe"]
[Black "Berczes, David"]
[Result "1/2-1/2"]
[Annotator "ChessBase"]
[ECO "B40"]
[WhiteElo "2266"]
[BlackElo "2408"]
[PlyCount "77"]
[EventDate "2025.03.23"]
[EventCountry "HUN"]
[SourceTitle "playchess.com"]
[Source "ChessBase"]
[SourceQuality "1"]
[TimeControl "5400+30"]

1. e4 {[%emt 0:00:03]} c5 {[%emt 0:17:23]} 2. Nf3 {[%emt 0:00:09]} e6 {[%emt 0:00:30]} 3. Nc3 {[%emt 0:00:18]} a6 {[%emt 0:03:20]} 4. g3 {[%emt 0:00:20]} Nc6 {[%emt 0:00:55]} 5. Bg2 {[%emt 0:00:21]} d6 {[%emt 0:00:05]} 6. O-O {[%emt 0:00:53]} Nf6 {[%emt 0:00:56]} 7. d4 {[%emt 0:00:26]} cxd4 {[%emt 0:00:06]} 8. Nxd4 {[%emt 0:00:06]} Bd7 {[%emt 0:00:07]} 9. a4 {[%emt 0:05:25]} Be7 {[%emt 0:00:22]} 10. Nxc6 {[%emt 0:00:59]} Bxc6 {[%emt 0:03:29]} 11. Re1 {[%emt 0:01:48]} O-O {[%emt 0:05:45]} 12. a5 {[%emt 0:08:04]} Rc8 {[%emt 0:16:07]} 13. Be3 {[%emt 0:00:46]} Nd7 {[%emt 0:14:59]} 14. Na4 {[%emt 0:04:32]} Qe8 {[%emt 0:11:30]} 15. Nb6 {[%emt 0:12:00]} Nxb6 {[%emt 0:00:53]} 16. Bxb6 {[%emt 0:00:31]} Qd7 {[%emt 0:07:58]} 17. c4 {[%emt 0:08:35]} f5 {[%emt 0:06:41]} 18. b3 {[%emt 0:04:39]} Bf6 {[%emt 0:05:00]} 19. Ra2 {[%emt 0:03:45]} Bc3 {[%emt 0:03:21]} 20. Re3 {[%emt 0:00:49]} Bb4 {[%emt 0:00:28]} 21. exf5 {[%emt 0:11:41]} Bxg2 {[%emt 0:00:10]} 22. Kxg2 {[%emt 0:00:07]} Rxf5 {[%emt 0:00:06]} 23. Rae2 {[%emt 0:05:04]} Re8 {[%emt 0:00:47]} 24. Qd3 {[%emt 0:05:19]} g6 {[%emt 0:00:24]} 25. Ra2 {[%emt 0:00:30]} Qc6+ {[%emt 0:01:06]} 26. Qe4 {[%emt 0:01:16]} d5 {[%emt 0:00:29]} 27. cxd5 {[%emt 0:00:37]} Qxd5 {[%emt 0:00:23]} 28. Ra4 {[%emt 0:02:24]} Qxe4+ {[%emt 0:00:37]} 29. Rxe4 {[%emt 0:00:06]} Bc5 {[%emt 0:00:28]} 30. Bxc5 {[%emt 0:00:21]} Rxc5 {[%emt 0:00:07]} 31. Rab4 {[%emt 0:01:06]} Re7 {[%emt 0:00:30]} 32. Rb6 {[%emt 0:00:47]} Rxa5 {[%emt 0:00:55]} 33. Reb4 {[%emt 0:00:19]} Rd5 {[%emt 0:00:31]} 34. Rxb7 {[%emt 0:00:09]} Rxb7 {[%emt 0:00:29]} 35. Rxb7 {[%emt 0:00:06]} a5 {[%emt 0:00:11]} 36. Kf3 {[%emt 0:01:25]} Rd2 {[%emt 0:00:35]} 37. Rb5 {[%emt 0:01:45]} Ra2 {[%emt 0:00:42]} 38. Rb7 {[%emt 0:01:13]} a4 {[%emt 0:00:29]} 39. bxa4 {[%emt 0:00:07]} 1/2-1/2

[Event "SixDays Budapest March GM A 2025"]
[Site "Budapest"]
[Date "2025.03.26"]
[Round "4.4"]
[White "Pap, Misa"]
[Black "Zia, Tahsin Tajwar"]
[Result "1-0"]
[Annotator "RC"]
[ECO "B22"]
[WhiteElo "2457"]
[BlackElo "2327"]
[PlyCount "87"]
[EventDate "2025.03.23"]
[EventCountry "HUN"]
[SourceTitle "playchess.com"]
[Source "ChessBase"]
[SourceQuality "1"]
[TimeControl "5400+30"]

1. e4 {[%emt 0:00:33]} c5 {[%emt 0:00:24]} 2. c3 {[%emt 0:00:33]} Nf6 {[%emt 0:00:13]} 3. e5 {[%emt 0:00:07]} Nd5 {[%emt 0:00:06]} 4. Nf3 {[%emt 0:00:07]} Nc6 {[%emt 0:01:20]} 5. d4 {[%emt 0:00:32]} cxd4 {[%emt 0:00:14]} 6. Bc4 {[%emt 0:00:47]} Nb6 {[%emt 0:02:59]} 7. Bb3 {[%emt 0:00:07]} d5 {[%emt 0:03:01]} 8. exd6 {[%emt 0:00:05]} Qxd6 {[%emt 0:05:03]} 9. O-O {[%emt 0:00:06]} Be6 {[%emt 0:05:25]} 10. Bxe6 {[%emt 0:00:09]} Qxe6 {[%emt 0:00:04]} 11. Nxd4 {[%emt 0:00:05]} Qd7 {[%emt 0:09:39]} 12. Nxc6 {[%emt 0:07:33]} Qxc6 {[%emt 0:00:08]} 13. Nd2 {[%emt 0:00:23]} g6 {[%emt 0:16:56]} 14. Nf3 {[%emt 0:00:13]} Bg7 {[%emt 0:00:13]} 15. Re1 {[%emt 0:00:14]} e6 {[%emt 0:01:54]} 16. Bf4 {[%emt 0:17:12]} O-O {[%emt 0:05:50]} 17. Ne5 {[%emt 0:00:19]} Qd5 {[%emt 0:04:33]} 18. Qb3 {[%emt 0:00:52]} f6 {[%emt 0:05:41]} 19. c4 {[%emt 0:10:10]} Qd4 {[%emt 0:06:35]} 20. Be3 {[%emt 0:01:53]} Qxe5 {[%emt 0:00:05]} 21. Bxb6 {[%emt 0:00:06]} Qf5 {[%emt 0:03:42]} 22. Bc7 {[%emt 0:02:58]} Qc5 {[%emt 0:09:28]} 23. Bf4 {[%emt 0:06:15]} e5 {[%emt 0:03:43]} 24. Be3 {[%emt 0:00:06]} Qc6 {[%emt 0:01:00]} 25. Rad1 {[%emt 0:00:37]} Kh8 {[%emt 0:00:43]} 26. Rd5 {[%emt 0:00:30]} Rac8 {[%emt 0:02:41]} 27. Bxa7 {[%emt 0:11:35]} Qxc4 {[%emt 0:00:20]} 28. Qxc4 {[%emt 0:00:10]} Rxc4 {[%emt 0:00:05]} 29. Rd7 {[%emt 0:01:27]} b5 {[%emt 0:02:19]} 30. Rb7 {[%emt 0:00:18]} b4 {[%emt 0:02:25]} 31. Rd1 {[%emt 0:04:37]} Rfc8 {[%emt 0:03:55]} 32. Be3 {[%emt 0:09:46]} f5 {[%emt 0:01:47]} 33. b3 {[%emt 0:01:15]} Rc2 {[%emt 0:00:16]} 34. g3 {[%emt 0:00:14]} Bf8 {[%emt 0:01:57]} 35. Rdd7 {[%emt 0:00:39]} Rxa2 {[%emt 0:01:09]} 36. Bg5 {[%emt 0:04:31]} Ra6 {[%emt 0:01:35]} 37. Rxh7+ {[%emt 0:01:51]} Kg8 {[%emt 0:00:01]} 38. Rhd7 {[%emt 0:02:23]} Ra2 {[%emt 0:01:27]} 39. Rb6 {[%emt 0:05:31]} Bc5 {[%emt 0:00:23]} 40. Rxg6+ {[%emt 0:00:04]} Kf8 {[%emt 0:00:03]} 41. Bh6+ {[%emt 0:02:15]} Ke8 {[%emt 0:00:05]} 42. Rb7 {[%emt 0:01:34]} Bxf2+ {[%emt 0:00:27]} 43. Kf1 {[%emt 0:00:11]} Ra1+ {[%emt 0:00:26]} 44. Kg2 {[%emt 0:00:04]} 1-0